[Event "Czech Open Rapid G1 2024"]
[Site "Pardubice"]
[Date "2024.07.17"]
[Round "1.35"]
[White "Pipek, Petr"]
[Black "Alexikov, Alexander"]
[Result "0-1"]
[Annotator "RC"]
[ECO "E90"]
[WhiteElo "1759"]
[BlackElo "2183"]
[PlyCount "68"]
[EventDate "2024.07.16"]
[EventType "swiss"]
[EventCountry "CZE"]
[SourceTitle "playchess.com"]
[Source "ChessBase"]
[SourceQuality "1"]
[TimeControl "1200+10"]

1. d4 {[%emt 0:00:03]} Nf6 {[%emt 0:00:01]} 2. c4 {[%emt 0:00:02]} g6 {[%emt 0:00:01]} 3. Nc3 {[%emt 0:00:05]} Bg7 {[%emt 0:00:01]} 4. Nf3 {[%emt 0:00:12]} O-O {[%emt 0:00:08]} 5. e4 {[%emt 0:01:24]} d6 {[%emt 0:00:02]} 6. Bd3 {[%emt 0:00:10]} Nc6 {[%emt 0:02:45]} 7. O-O {[%emt 0:01:51]} Bg4 {[%emt 0:00:48]} 8. Ne2 {[%emt 0:01:07]} Nb4 {[%emt 0:02:58]} 9. Be3 {[%emt 0:02:21]} Nxd3 {[%emt 0:00:25]} 10. Qxd3 {[%emt 0:00:02]} Bxf3 {[%emt 0:00:08]} 11. gxf3 {[%emt 0:00:03]} Nd7 {[%emt 0:00:27]} 12. Rac1 {[%emt 0:00:28]} c5 {[%emt 0:00:05]} 13. f4 {[%emt 0:02:42]} Kh8 {[%emt 0:04:07]} 14. b3 {[%emt 0:03:09]} b6 {[%emt 0:02:19]} 15. Rfd1 {[%emt 0:02:03]} Qe8 {[%emt 0:00:20]} 16. Nc3 {[%emt 0:00:36]} Rc8 {[%emt 0:00:18]} 17. dxc5 {[%emt 0:04:10]} Nxc5 {[%emt 0:00:07]} 18. Bxc5 {[%emt 0:00:01]} Rxc5 {[%emt 0:00:13]} 19. Kg2 {[%emt 0:00:41]} Rh5 {[%emt 0:02:39]} 20. Qf3 {[%emt 0:00:48]} f5 {[%emt 0:00:19]} 21. Rd5 {[%emt 0:00:14]} Qf7 {[%emt 0:00:37]} 22. exf5 {[%emt 0:00:20]} gxf5 {[%emt 0:00:09]} 23. Ne2 {[%emt 0:00:07]} Rh6 {[%emt 0:01:11]} 24. Ng3 {[%emt 0:00:14]} Rg6 {[%emt 0:00:08]} 25. Kh1 {[%emt 0:00:01]} e5 {[%emt 0:00:52]} 26. Nh5 {[%emt 0:00:49]} Rg4 {[%emt 0:00:35]} 27. Nxg7 {[%emt 0:00:37]} Rxf4 {[%emt 0:00:08]} 28. Qg3 {[%emt 0:00:01]} Rg4 {[%emt 0:00:16]} 29. Qh3 {[%emt 0:00:11]} Qxg7 {[%emt 0:00:04]} 30. Rxd6 {[%emt 0:00:04]} Rg8 {[%emt 0:00:04]} 31. Rdd1 {[%emt 0:00:03]} Qg6 {[%emt 0:00:29]} 32. Qe3 {[%emt 0:00:23]} Re4 {[%emt 0:00:14]} 33. Qg3 {[%emt 0:00:07]} Qc6 {[%emt 0:00:16]} 34. Qf3 {[%emt 0:00:18]} Re1+ {[%emt 0:00:05]} 0-1

[Event "Czech Open Rapid G1 2024"]
[Site "Pardubice"]
[Date "2024.07.17"]
[Round "1.36"]
[White "Hosticka, Frantisek"]
[Black "Soucek, Andrej"]
[Result "1-0"]
[Annotator "RC"]
[ECO "B51"]
[WhiteElo "2062"]
[BlackElo "1889"]
[PlyCount "117"]
[EventDate "2024.07.16"]
[EventType "swiss"]
[EventCountry "CZE"]
[SourceTitle "playchess.com"]
[Source "ChessBase"]
[SourceQuality "1"]
[TimeControl "1200+10"]

1. e4 {[%emt 0:00:01]} c5 {[%emt 0:00:04]} 2. Nf3 {[%emt 0:00:01]} d6 {[%emt 0:00:00]} 3. Bb5+ {[%emt 0:00:01]} Nd7 {[%emt 0:00:02]} 4. O-O {[%emt 0:00:03]} a6 {[%emt 0:00:01]} 5. Be2 {[%emt 0:00:02]} Ngf6 {[%emt 0:00:02]} 6. d3 {[%emt 0:00:05]} g6 {[%emt 0:00:01]} 7. Re1 {[%emt 0:00:02]} Bg7 {[%emt 0:00:01]} 8. Nbd2 {[%emt 0:00:01]} O-O {[%emt 0:00:04]} 9. Nf1 {[%emt 0:00:01]} b5 {[%emt 0:00:06]} 10. Ng3 {[%emt 0:00:02]} Bb7 {[%emt 0:00:04]} 11. c3 {[%emt 0:00:05]} Rc8 {[%emt 0:00:22]} 12. h3 {[%emt 0:00:15]} c4 {[%emt 0:01:54]} 13. dxc4 {[%emt 0:00:15]} bxc4 {[%emt 0:00:01]} 14. Bf1 {[%emt 0:00:04]} Qc7 {[%emt 0:00:40]} 15. Qa4 {[%emt 0:03:45]} Nc5 {[%emt 0:02:59]} 16. Qxc4 {[%emt 0:00:34]} Ncxe4 {[%emt 0:00:02]} 17. Qxc7 {[%emt 0:00:45]} Rxc7 {[%emt 0:00:01]} 18. Nxe4 {[%emt 0:00:32]} Nxe4 {[%emt 0:00:02]} 19. Be3 {[%emt 0:02:32]} Rb8 {[%emt 0:01:11]} 20. Rad1 {[%emt 0:04:08]} Ba8 {[%emt 0:03:36]} 21. Bc1 {[%emt 0:00:37]} Nc5 {[%emt 0:00:12]} 22. Nd4 {[%emt 0:01:10]} Bf6 {[%emt 0:00:50]} 23. Nc2 {[%emt 0:01:15]} a5 {[%emt 0:02:42]} 24. Ne3 {[%emt 0:00:12]} Na4 {[%emt 0:00:38]} 25. Re2 {[%emt 0:02:07]} h5 {[%emt 0:02:57]} 26. Nd5 {[%emt 0:00:58]} Bxd5 {[%emt 0:00:01]} 27. Rxd5 {[%emt 0:00:01]} Rc5 {[%emt 0:00:16]} 28. Rxc5 {[%emt 0:00:37]} Nxc5 {[%emt 0:00:01]} 29. Rc2 {[%emt 0:00:50]} Kg7 {[%emt 0:00:51]} 30. g4 {[%emt 0:00:37]} hxg4 {[%emt 0:01:10]} 31. hxg4 {[%emt 0:00:01]} Kf8 {[%emt 0:00:01]} 32. Be2 {[%emt 0:00:26]} a4 {[%emt 0:00:14]} 33. Kg2 {[%emt 0:00:15]} Ke8 {[%emt 0:00:06]} 34. Be3 {[%emt 0:00:33]} Ne6 {[%emt 0:00:15]} 35. f4 {[%emt 0:00:34]} Kd7 {[%emt 0:00:01]} 36. Bf3 {[%emt 0:00:33]} Nd8 {[%emt 0:02:15]} 37. Kg3 {[%emt 0:00:58]} Nc6 {[%emt 0:00:08]} 38. g5 {[%emt 0:00:35]} Bg7 {[%emt 0:00:02]} 39. Bg4+ {[%emt 0:00:04]} e6 {[%emt 0:00:23]} 40. Bf3 {[%emt 0:00:24]} Na5 {[%emt 0:00:04]} 41. Ba7 {[%emt 0:00:09]} Rc8 {[%emt 0:00:12]} 42. Be2 {[%emt 0:00:11]} a3 {[%emt 0:01:07]} 43. b4 {[%emt 0:00:18]} Nc4 {[%emt 0:00:08]} 44. b5 {[%emt 0:00:15]} d5 {[%emt 0:00:18]} 45. b6 {[%emt 0:00:17]} Ne3 {[%emt 0:00:49]} 46. Rc1 {[%emt 0:00:03]} Kc6 {[%emt 0:00:20]} 47. Ba6 {[%emt 0:00:14]} Nf5+ {[%emt 0:00:04]} 48. Kf2 {[%emt 0:00:09]} Nd6 {[%emt 0:00:15]} 49. Bxc8 {[%emt 0:00:05]} Nxc8 {[%emt 0:00:01]} 50. Rh1 {[%emt 0:00:13]} Bxc3 {[%emt 0:00:06]} 51. Rh7 {[%emt 0:00:07]} Bd4+ {[%emt 0:00:02]} 52. Kf3 {[%emt 0:00:01]} Nxa7 {[%emt 0:00:02]} 53. bxa7 {[%emt 0:00:04]} Bxa7 {[%emt 0:00:01]} 54. Rxf7 {[%emt 0:00:01]} Bd4 {[%emt 0:00:02]} 55. Rf8 {[%emt 0:00:06]} Bb2 {[%emt 0:00:04]} 56. Rg8 {[%emt 0:00:07]} d4 {[%emt 0:00:02]} 57. Ke4 {[%emt 0:00:08]} Kc5 {[%emt 0:00:01]} 58. Kd3 {[%emt 0:00:01]} Bc1 {[%emt 0:00:11]} 59. Ke4 {[%emt 0:00:12]} 1-0

[Event "Czech Open Rapid G1 2024"]
[Site "Pardubice"]
[Date "2024.07.17"]
[Round "2.1"]
[White "Navara, David"]
[Black "Freisler, Pavel"]
[Result "1-0"]
[Annotator "TA"]
[ECO "E48"]
[WhiteElo "2682"]
[BlackElo "2261"]
[PlyCount "59"]
[EventDate "2024.07.16"]
[EventType "swiss"]
[EventCountry "CZE"]
[SourceTitle "playchess.com"]
[Source "ChessBase"]
[SourceQuality "1"]
[TimeControl "1200+10"]

{[%evp 16,59,15,19,32,33,33,41,25,0,0,0,53,57,65,72,62,65,77,64,69,71,82,62,88,77,97,95,87,37,129,118,443,433,626,637,630,634,751,611,642,611,1331,999,2431,1149]} 1. d4 {[%emt 0:00:02]} Nf6 {[%emt 0:00:08]} 2. c4 {[%emt 0:00:10]} e6 {[%emt 0:00:00]} 3. Nc3 {[%emt 0:00:00]} Bb4 {[%emt 0:00:00]} 4. e3 {[%emt 0:00:00]} O-O {[%emt 0:00:22]} 5. Bd3 {[%emt 0:00:00]} d5 {[%emt 0:00:10]} 6. cxd5 {[%emt 0:00:01]} exd5 {[%emt 0:00:31]} 7. Nge2 {[%emt 0:00:02]} Re8 {[%emt 0:02:59]} 8. O-O {[%emt 0:00:17]} c6 {[%emt 0:01:10][%cal Bc7c6,Bc6c5][%mdl 32]} 9. f3 {[%emt 0:00:11]} c5 {[%emt 0:01:05]} 10. a3 {[%emt 0:00:08]} cxd4 {[%emt 0:00:15]} 11. axb4 {[%emt 0:00:35]} dxc3 {[%emt 0:00:02] Weiß steht etwas besser.} 12. b5 {[%emt 0:01:03]} cxb2 {[%emt 0:02:12]} 13. Bxb2 {[%emt 0:00:02]} Nbd7 {[%emt 0:01:42]} (13... Rxe3 $11 14. Qc2 Re8) 14. Bd4 $14 {[%emt 0:01:05]} a6 {[%emt 0:00:07]} 15. Nc3 {[%emt 0:02:22] Weiß steht aktiver.} Ne5 {[%emt 0:00:26]} 16. Be2 {[%emt 0:00:42]} Bd7 {[%emt 0:00:35]} 17. bxa6 {[%emt 0:01:44]} bxa6 {[%emt 0:00:01]} 18. Bxa6 {[%emt 0:00:23]} Bc6 {[%emt 0:02:05]} 19. Qb3 {[%emt 0:00:31]} Qd7 {[%emt 0:01:25]} 20. Rfb1 {[%emt 0:00:26]} h5 {[%emt 0:01:06][%cal Bh7h5,Bh5h4][%mdl 32]} 21. Qc2 {[%emt 0:02:27]} h4 {[%emt 0:01:36]} 22. h3 {[%emt 0:00:24]} ({Vorzuziehen ist} 22. Ne2 $16) 22... Qe6 {[%emt 0:00:20]} (22... Nxf3+ $2 23. gxf3 Qxh3 24. Qg2 $18) ({Besser ist} 22... Nh5 $1 $14) 23. Qf2 $16 {[%emt 0:01:07]} g5 $2 {[%emt 0:02:14][%mdl 8192] [#] Das kostet Schwarz die Partie.} (23... Bd7 $16 {ist zäher.}) 24. f4 $18 {[%emt 0:00:25] Weiß steht klar auf Gewinn.} gxf4 {[%emt 0:00:56]} (24... Nc4 $142 25. fxg5 Nh7 26. Bxc4 (26. Qxh4 Qg6 $18) 26... Rxa1 27. Rxa1 dxc4 28. Qxh4 Qf5) 25. exf4 {[%emt 0:00:15]} (25. Qxh4 f3 26. Qg5+ Kh8 $14) 25... Nc4 {[%emt 0:01:28]} 26. f5 {[%emt 0:01:34]} Qd6 {[%emt 0:00:17]} 27. Bxc4 {[%emt 0:00:56] [#] Zielt auf Rxa8 ab. Das Läuferpaar ist gut.} Rxa1 {[%emt 0:00:21]} 28. Rxa1 {[%emt 0:00:04]} dxc4 {[%emt 0:00:03]} 29. Qxh4 {[%emt 0:00:03]} Re5 {[%emt 0:01:02]} 30. Qg3+ {[%emt 0:00:05] Gewichteter Fehlerwert: Weiß=0.16 (sehr präzise) /Schwarz=0.57.  Verlustzug:     	---       	Schwarz=1     Fehler:       	Weiß=1     	Schwarz=3     Ungenau:       	---       	Schwarz=1     OK:         	Weiß=6     	Schwarz=3     Bester:       	Weiß=2     	---} 1-0

[Event "Czech Open Rapid G1 2024"]
[Site "Pardubice"]
[Date "2024.07.17"]
[Round "2.2"]
[White "Jurek, Josef"]
[Black "Nisipeanu, Liviu-Dieter"]
[Result "0-1"]
[Annotator "RC"]
[ECO "E06"]
[WhiteElo "2200"]
[BlackElo "2583"]
[PlyCount "76"]
[EventDate "2024.07.16"]
[EventType "swiss"]
[EventCountry "CZE"]
[SourceTitle "playchess.com"]
[Source "ChessBase"]
[SourceQuality "1"]
[TimeControl "1200+10"]

1. Nf3 {[%emt 0:00:05]} Nf6 {[%emt 0:00:05]} 2. c4 {[%emt 0:00:07]} e6 {[%emt 0:00:10]} 3. g3 {[%emt 0:00:13]} d5 {[%emt 0:00:11]} 4. Bg2 {[%emt 0:00:06]} Be7 {[%emt 0:00:02]} 5. d4 {[%emt 0:00:11]} O-O {[%emt 0:00:04]} 6. O-O {[%emt 0:00:03]} c6 {[%emt 0:00:01]} 7. Qc2 {[%emt 0:00:09]} b6 {[%emt 0:01:26]} 8. b3 {[%emt 0:00:12]} a5 {[%emt 0:01:28]} 9. Nbd2 {[%emt 0:00:59]} Bb7 {[%emt 0:00:03]} 10. e4 {[%emt 0:00:30]} Na6 {[%emt 0:00:32]} 11. a3 {[%emt 0:00:10]} Rc8 {[%emt 0:00:07]} 12. Bb2 {[%emt 0:00:28]} c5 {[%emt 0:00:39]} 13. exd5 exd5 {[%emt 0:00:02]} 14. Qf5 {[%emt 0:00:49]} dxc4 {[%emt 0:01:19]} 15. Nxc4 {[%emt 0:00:55]} Be4 {[%emt 0:03:50]} 16. Qf4 {[%emt 0:01:07]} b5 {[%emt 0:00:52]} 17. Nce5 {[%emt 0:00:45]} c4 {[%emt 0:00:30]} 18. bxc4 {[%emt 0:00:59]} bxc4 {[%emt 0:00:02]} 19. Rac1 {[%emt 0:01:59]} Qd5 {[%emt 0:00:05]} 20. Nh4 {[%emt 0:02:11]} Bxg2 {[%emt 0:00:46]} 21. Nxg2 {[%emt 0:00:06]} Qb5 {[%emt 0:00:07]} 22. Qd2 {[%emt 0:01:09]} c3 {[%emt 0:00:57]} 23. Bxc3 {[%emt 0:00:46]} Bxa3 {[%emt 0:00:05]} 24. Rb1 {[%emt 0:00:43]} Bb4 {[%emt 0:00:01]} 25. Bxb4 {[%emt 0:00:10]} Nxb4 {[%emt 0:00:03]} 26. Ne3 {[%emt 0:00:13]} Ne4 {[%emt 0:00:07]} 27. Qb2 {[%emt 0:00:28]} Qb7 {[%emt 0:01:24]} 28. N3c4 {[%emt 0:01:02]} Rxc4 {[%emt 0:01:33]} 29. Nxc4 {[%emt 0:00:15]} Ng5 {[%emt 0:00:01]} 30. f3 {[%emt 0:01:08]} Nxf3+ {[%emt 0:00:04]} 31. Rxf3 {[%emt 0:00:17]} Qxf3 {[%emt 0:00:03]} 32. Nxa5 {[%emt 0:00:29]} Nd3 {[%emt 0:01:48]} 33. Qd2 {[%emt 0:00:55]} Qe4 {[%emt 0:00:29]} 34. Rd1 {[%emt 0:00:42]} Qxd4+ {[%emt 0:00:06]} 35. Kf1 {[%emt 0:00:59]} Rd8 {[%emt 0:00:32]} 36. Nc6 {[%emt 0:00:55]} Qf6+ {[%emt 0:00:04]} 37. Qf4 {[%emt 0:00:01]} Qxc6 {[%emt 0:00:09]} 38. Rxd3 {[%emt 0:00:10]} Qb5 {[%emt 0:00:07]} 0-1

[Event "Czech Open Rapid G1 2024"]
[Site "Pardubice"]
[Date "2024.07.17"]
[Round "2.3"]
[White "Movsesian, Sergei"]
[Black "Ludvik, Tomas"]
[Result "1-0"]
[Annotator "RC"]
[ECO "C42"]
[WhiteElo "2618"]
[BlackElo "2210"]
[PlyCount "127"]
[EventDate "2024.07.16"]
[EventType "swiss"]
[EventCountry "CZE"]
[SourceTitle "playchess.com"]
[Source "ChessBase"]
[SourceQuality "1"]
[TimeControl "1200+10"]

1. e4 {[%emt 0:00:03]} e5 {[%emt 0:00:28]} 2. Nf3 {[%emt 0:00:02]} Nf6 {[%emt 0:00:02]} 3. Nxe5 {[%emt 0:00:12]} d6 {[%emt 0:00:01]} 4. Nf3 {[%emt 0:00:01]} Nxe4 {[%emt 0:00:02]} 5. c4 {[%emt 0:00:02]} Be7 {[%emt 0:00:18]} 6. d4 {[%emt 0:00:07]} O-O {[%emt 0:01:39]} 7. Bd3 {[%emt 0:00:02]} d5 {[%emt 0:00:40]} 8. O-O {[%emt 0:00:28]} Nc6 {[%emt 0:01:02]} 9. Nc3 {[%emt 0:01:01]} Nxc3 {[%emt 0:01:01]} 10. bxc3 {[%emt 0:00:02]} dxc4 {[%emt 0:00:21]} 11. Bxc4 {[%emt 0:00:01]} Bg4 {[%emt 0:00:35]} 12. Re1 {[%emt 0:00:14]} Qd6 {[%emt 0:02:42]} 13. h3 {[%emt 0:00:34]} Bh5 {[%emt 0:00:13]} 14. Be3 {[%emt 0:01:31]} Rad8 {[%emt 0:00:50]} 15. Be2 {[%emt 0:00:09]} Bf6 {[%emt 0:00:52]} 16. Qb3 {[%emt 0:00:40]} b6 {[%emt 0:00:26]} 17. Qb5 {[%emt 0:00:26]} Bg6 {[%emt 0:01:56]} 18. Nd2 {[%emt 0:02:13]} Ne7 {[%emt 0:01:59]} 19. Nc4 {[%emt 0:01:37]} Qd7 {[%emt 0:01:07]} 20. a4 {[%emt 0:01:35]} Nd5 {[%emt 0:00:26]} 21. Bd2 {[%emt 0:00:02]} c6 {[%emt 0:01:22]} 22. Qb3 {[%emt 0:00:41]} c5 {[%emt 0:00:12]} 23. Bg4 {[%emt 0:01:24]} Bf5 {[%emt 0:02:13]} 24. Ne5 {[%emt 0:00:42]} Bxe5 {[%emt 0:01:51]} 25. Bxf5 {[%emt 0:00:01]} Qxf5 {[%emt 0:00:01]} 26. Rxe5 {[%emt 0:00:02]} Qd3 {[%emt 0:00:28]} 27. Rd1 {[%emt 0:03:49]} c4 {[%emt 0:00:21]} 28. Qb1 {[%emt 0:02:14]} Qxb1 {[%emt 0:00:26]} 29. Rxb1 {[%emt 0:00:01]} f6 {[%emt 0:00:02]} 30. Re4 {[%emt 0:00:33]} Kf7 {[%emt 0:00:40]} 31. g4 {[%emt 0:00:17]} Rfe8 {[%emt 0:00:21]} 32. f3 {[%emt 0:00:02]} g6 {[%emt 0:00:16]} 33. Kf2 {[%emt 0:00:03]} Re6 {[%emt 0:00:23]} 34. a5 {[%emt 0:02:46]} Rde8 {[%emt 0:00:05]} 35. axb6 {[%emt 0:00:19]} axb6 {[%emt 0:00:08]} 36. Rb5 {[%emt 0:00:04]} Nc7 {[%emt 0:00:13]} 37. Rb2 {[%emt 0:00:28]} Nd5 {[%emt 0:00:20]} 38. Rxe6 {[%emt 0:00:29]} Rxe6 {[%emt 0:00:01]} 39. Ra2 {[%emt 0:00:01]} Re7 {[%emt 0:00:08]} 40. Ra4 {[%emt 0:00:15]} Rc7 {[%emt 0:00:21]} 41. Ke2 {[%emt 0:00:07]} Ke6 {[%emt 0:00:02]} 42. Kd1 {[%emt 0:00:02]} Kf7 {[%emt 0:00:18]} 43. Kc2 {[%emt 0:00:06]} b5 {[%emt 0:00:05]} 44. Ra5 {[%emt 0:00:08]} Rb7 {[%emt 0:00:01]} 45. Bc1 {[%emt 0:00:11]} Nc7 {[%emt 0:00:21]} 46. Ba3 {[%emt 0:00:21]} Nd5 {[%emt 0:00:02]} 47. Bc5 {[%emt 0:00:29]} h5 {[%emt 0:00:17]} 48. Ra8 {[%emt 0:00:12]} Nf4 {[%emt 0:00:16]} 49. Rf8+ {[%emt 0:00:27]} Kg7 {[%emt 0:00:10]} 50. Rc8 {[%emt 0:00:10]} Nxh3 {[%emt 0:00:10]} 51. d5 {[%emt 0:00:02]} Nf4 {[%emt 0:00:01]} 52. d6 {[%emt 0:00:12]} Ne6 {[%emt 0:00:02]} 53. gxh5 {[%emt 0:00:25]} gxh5 {[%emt 0:00:01]} 54. Bf2 {[%emt 0:00:21]} f5 {[%emt 0:00:32]} 55. Bg3 {[%emt 0:00:21]} Kf7 {[%emt 0:00:11]} 56. Rc7+ {[%emt 0:00:18]} Nxc7 {[%emt 0:00:14]} 57. dxc7 {[%emt 0:00:01]} Rxc7 {[%emt 0:00:01]} 58. Bxc7 {[%emt 0:00:01]} Kg6 {[%emt 0:00:20]} 59. Bf4 {[%emt 0:00:01]} h4 {[%emt 0:00:04]} 60. Kd2 {[%emt 0:00:04]} h3 {[%emt 0:00:17]} 61. Ke2 {[%emt 0:00:03]} Kh5 {[%emt 0:00:06]} 62. Kf2 {[%emt 0:00:06]} Kh4 {[%emt 0:00:11]} 63. Kg1 {[%emt 0:00:13]} Kh5 {[%emt 0:00:08]} 64. Kh1 {[%emt 0:00:18]} 1-0

[Event "Czech Open Rapid G1 2024"]
[Site "Pardubice"]
[Date "2024.07.17"]
[Round "2.4"]
[White "Brendel, Oliver"]
[Black "Stocek, Jiri"]
[Result "0-1"]
[Annotator "TA"]
[ECO "A10"]
[WhiteElo "2291"]
[BlackElo "2524"]
[PlyCount "68"]
[EventDate "2024.07.16"]
[EventType "swiss"]
[EventCountry "CZE"]
[SourceTitle "playchess.com"]
[Source "ChessBase"]
[SourceQuality "1"]
[TimeControl "1200+10"]

{[%evp 9,68,36,39,35,27,28,53,30,90,85,81,62,84,42,45,-14,50,57,54,48,45,0,0,0,44,35,31,7,4,-53,-54,-249,-172,-275,-168,-167,-87,-95,-80,-161,-161,-128,-37,-37,-33,-34,-34,-78,-28,-38,-26,-25,-22,-38,-21,-59,-59,-937,-929,-29997,-29998]} 1. c4 {[%emt 0:00:07]} b6 {[%emt 0:00:05]} 2. Nc3 {[%emt 0:00:09]} Bb7 {[%emt 0:00:02]} 3. e4 {[%emt 0:00:02]} e6 {[%emt 0:00:10]} 4. g3 {[%emt 0:00:10]} Bb4 {[%emt 0:00:08]} 5. Nge2 {[%emt 0:00:04]} f5 {[%emt 0:00:37]} 6. Bg2 {[%emt 0:00:20]} Nf6 {[%emt 0:00:07]} 7. d3 {[%emt 0:00:13]} O-O {[%emt 0:02:23]} 8. O-O {[%emt 0:00:05] White is slightly better.} Na6 {[%emt 0:00:33]} (8... fxe4 $11 {remains equal.} 9. Bg5 (9. dxe4 a5 $14) (9. Nxe4 Nxe4 10. dxe4 Bc5 $11) 9... Bxc3 10. Nxc3 h6 11. Nxe4 (11. Bxe4 Nc6 $11) 11... Bxe4 (11... hxg5 12. Nxf6+ Qxf6 13. Bxb7 $16) 12. Bxe4 hxg5 13. Bxa8 c6) 9. a3 {[%emt 0:00:57]} Bxc3 {[%emt 0:00:31]} 10. Nxc3 {[%emt 0:00:02]} fxe4 {[%emt 0:01:40]} 11. b4 {[%emt 0:01:16][%cal Rd3e4] Wards off Nc5} (11. Nxe4 Nxe4 12. dxe4 (12. Bxe4 Nc5 $11) 12... Nc5 $11) 11... d5 {[%emt 0:00:14]} 12. cxd5 {[%emt 0:08:19]} (12. Bf4 $14) 12... exd5 {[%emt 0:00:13]} (12... exd3 $11 13. Qxd3 (13. dxe6 Bxg2 14. Kxg2 c5 $11) 13... exd5) 13. dxe4 $14 {[%emt 0:00:13]} Nxe4 {[%emt 0:00:47]} 14. Nxe4 {[%emt 0:00:47]} dxe4 {[%emt 0:00:03]} 15. Qe2 {[%emt 0:00:09]} Qe7 {[%emt 0:00:59]} 16. Bf4 {[%emt 0:01:44]} Rad8 {[%emt 0:00:16]} 17. Rfe1 {[%emt 0:00:43][%cal Oe2c2][%mdl 1024] White has compensation.} Rfe8 {[%emt 0:00:32]} 18. Rac1 {[%emt 0:01:19]} c5 {[%emt 0:00:17]} 19. b5 {[%emt 0:02:09]} ({White should play} 19. Bf1 $11) 19... Nc7 $15 {[%emt 0:00:25]} 20. Rc4 $2 {[%emt 0:00:12] [#]} (20. Qc2 $15) 20... Ne6 {[%emt 0:01:09]} 21. Bxe4 {[%emt 0:01:42]} (21. Be5 {was necessary.}) 21... Nxf4 {[%emt 0:01:15]} 22. gxf4 {[%emt 0:00:25]} Qh4 {[%emt 0:01:15]} (22... Qf7 $19 23. Ra4 Bxe4 (23... Qxf4 $2 {loses.} 24. Bd5+ Bxd5 25. Qxe8+ Rxe8 26. Rxe8+ Kf7 27. Rxf4+ $18) 24. Rxe4 Rxe4 25. Qxe4 h6) 23. Qf3 $17 {[%emt 0:00:57][%cal Oe1e3]} Kh8 {[%emt 0:01:04]} 24. Rcc1 {[%emt 0:00:50]} (24. Rc3 $17 {is a better defense.}) 24... Rxe4 $19 {[%emt 0:01:24]} 25. Rxe4 {[%emt 0:00:01]} h6 {[%emt 0:00:42]} (25... Bxe4 $17 26. Qxe4 Qg4+ 27. Kh1 Qd7) 26. Rce1 $1 $15 {[%emt 0:00:32]} Bxe4 {[%emt 0:00:25]} 27. Rxe4 {[%emt 0:00:39][%mdl 4096] Endgame. KQR-KQR} Qf6 $36 {[%emt 0:00:04][%mdl 2048] White is under pressure.} 28. h3 {[%emt 0:00:21]} Rf8 {[%emt 0:00:43] Black is more active.} (28... Qg6+ $17 29. Kh2 Rd1) 29. a4 $11 {[%emt 0:00:08]} Kh7 {[%emt 0:00:42]} 30. Kh2 {[%emt 0:00:06]} Qd6 {[%emt 0:00:38]} 31. Qe3 {[%emt 0:00:03]} Rf6 {[%emt 0:00:17]} 32. h4 {[%emt 0:00:26]} Qd1 {[%emt 0:01:20] [#] Hoping for ...Rg6.} 33. Re5 $2 {[%emt 0:00:17][%mdl 8192]} (33. Re7 $15) 33... Rg6 $19 {[%emt 0:00:16] ( -> ...Qg1+)} ({Less strong is} 33... Qxa4 34. Qd3+ Rg6 35. Qf3 $17) 34. Qe4 {[%emt 0:00:11]} Qg1+ {[%emt 0:00:07] Weighted Error Value: White=0.76/Black=0.26 (precise) .  Loses game:     	White=2     	---        Mistake:       	White=4     	Black=5      Inaccurate:     	White=5     	Black=3      OK:         	White=4     	Black=9      Best:        	White=2     	Black=3      Strong:       	White=1     	---} 0-1